fUST/lending_fUST_20240904
["ID","MTS","AMOUNT","RATE_DAILY","PERIOD"]
[337096264,1725423057173,-500.0,0.00028767,2]
[337096265,1725423057184,-519.78,0.00028767,2]
[337096266,1725423057194,-571.84,0.00028767,2]
[337096267,1725423057204,-279.74959857,0.00028767,2]
[337096268,1725423057215,-746.83,0.00028767,2]
[337096269,1725423057226,-1861.83,0.00028767,2]
[337096270,1725423057237,-563.43,0.00028767,2]
[337096271,1725423057247,-500.0,0.00028767,2]
[337096272,1725423057257,-500.0,0.00028767,2]
[337096273,1725423057267,-500.0,0.00028767,2]
[337096274,1725423057278,-500.0,0.00028767,2]
[337096275,1725423057289,-238.93114802,0.00028767,2]
[337096276,1725423057300,-561.11,0.00028767,2]
[337096277,1725423057309,-500.0,0.00028767,2]
[337096278,1725423057319,-808.55,0.00028767,2]
[337096279,1725423057330,-500.0,0.00028767,2]
[337096280,1725423057342,-3784.67,0.00028767,2]
[337096281,1725423057352,-1223.34,0.00028767,2]
[337096282,1725423057363,-500.0,0.00028767,2]
[337096283,1725423057373,-500.0,0.00028767,2]
[337096284,1725423057383,-500.0,0.00028767,2]
[337096285,1725423057393,-500.0,0.00028767,2]
[337096286,1725423057404,-564.57,0.00028767,2]
[337096287,1725423057413,-500.0,0.00028767,2]
[337096288,1725423057423,-2092.4,0.00028767,2]
[337096289,1725423057433,-500.0,0.00028767,2]
[337096290,1725423057442,-500.0,0.00028767,2]
[337096291,1725423057451,-448.28101309,0.00028767,2]
[337096292,1725423057461,-779.0,0.00028767,2]
[337096293,1725423057471,-500.0,0.00028767,2]
[337096294,1725423057481,-500.0,0.00028767,2]
[337096295,1725423057491,-500.0,0.00028767,2]
[337096296,1725423057501,-500.0,0.00028767,2]
[337096297,1725423057511,-500.0,0.00028767,2]
[337096298,1725423057522,-1393.57,0.00028767,2]
[337096299,1725423057532,-500.0,0.00028767,2]
[337096300,1725423057545,-500.0,0.00028767,2]
[337096301,1725423057554,-500.0,0.00028767,2]
[337096302,1725423057565,-560.14,0.00028767,2]
[337096303,1725423057575,-500.0,0.00028767,2]
[337096304,1725423057588,-500.0,0.00028767,2]
[337096305,1725423057598,-1583.24,0.00028767,2]
[337096306,1725423057607,-272.22006017,0.00028767,2]
[337096307,1725423057616,-828.75,0.00028767,2]
[337096308,1725423057627,-949.38,0.00028767,2]
[337096309,1725423057638,-2926.65,0.00028767,2]
[337096310,1725423057649,-500.0,0.00028767,2]
[337096311,1725423057659,-500.0,0.00028767,2]
[337096312,1725423057671,-9610.65,0.00028767,2]
[337096313,1725423057682,-1202.75,0.00028767,2]
[337096314,1725423057691,-500.0,0.00028767,2]
[337096315,1725423057701,-500.0,0.00028767,2]
[337096316,1725423057713,-386.46828586,0.00028767,2]
[337096317,1725423057723,-999.35,0.00028767,2]
[337096318,1725423057734,-500.0,0.00028767,2]
[337096319,1725423057744,-500.0,0.00028767,2]
[337096320,1725423057753,-5111.8,0.00028767,2]
[337096321,1725423057768,-500.0,0.00028767,2]
[337096322,1725423057780,-500.0,0.00028767,2]
[337096323,1725423057789,-500.0,0.00028767,2]
[337096324,1725423057800,-500.0,0.00028767,2]
[337096325,1725423057812,-500.0,0.00028767,2]
[337096326,1725423057822,-150.112233,0.000288,6]
[337096327,1725423057831,-100000.0,0.00029,120]
[337096328,1725423057841,-150.112233,0.00029,9]
[337096329,1725423057851,-587.0,0.00029005,2]
[337096330,1725423057860,-500.0,0.00029041,2]
[337096331,1725423057869,-500.0,0.00029041,2]
[337096332,1725423057879,-366.20016833,0.00029041,2]
[337096333,1725423057889,-500.0,0.00029041,2]
[337096334,1725423057899,-268.37,0.00029041,2]
[337096335,1725423057908,-500.0,0.00029041,2]
[337096336,1725423057918,-500.0,0.00029041,2]
[337096337,1725423057927,-500.0,0.00029041,2]
[337096338,1725423057936,-500.0,0.00029041,2]
[337096339,1725423057945,-500.0,0.00029041,2]
[337096340,1725423057954,-500.0,0.00029041,2]
[337096341,1725423057963,-500.0,0.00029041,2]
[337096342,1725423057973,-475.28610716,0.00029041,2]
[337096343,1725423057982,-500.0,0.00029041,2]
[337096344,1725423057992,-500.0,0.00029041,2]
[337096345,1725423058001,-500.0,0.00029041,2]
[337096346,1725423058010,-151.90626557,0.00029041,2]
[337096347,1725423058019,-500.0,0.00029041,2]
[337096348,1725423058029,-500.0,0.00029041,2]
[337096349,1725423058167,-500.0,0.00029041,2]
[337096350,1725423058183,-500.0,0.00029041,2]
[337096351,1725423058192,-500.0,0.00029041,2]
[337096352,1725423058203,-500.0,0.00029041,2]
[337096353,1725423058212,-500.0,0.00029041,2]
[337096354,1725423058222,-519.41473333,0.00029041,2]
[337096355,1725423058232,-500.0,0.00029041,2]
[337096356,1725423058242,-500.0,0.00029041,2]
[337096357,1725423058251,-500.0,0.00029041,2]
[337096358,1725423058261,-500.0,0.00029041,2]
[337096359,1725423058270,-500.0,0.00029041,2]
[337096360,1725423058280,-5070.39,0.00029041,2]
[337096361,1725423058289,-434.07174651,0.00029041,2]
[337096362,1725423058299,-587.23575229,0.00029041,2]
[337096363,1725423058309,-500.0,0.00029041,2]
[337096364,1725423058320,-500.0,0.00029041,2]
[337096365,1725423058331,-500.0,0.00029041,2]
[337096366,1725423058340,-500.0,0.00029041,2]
[337096367,1725423058350,-519.78,0.00029041,2]
[337096368,1725423058361,-571.84,0.00029041,2]
[337096369,1725423058370,-746.83,0.00029041,2]
[337096370,1725423058380,-1861.83,0.00029041,2]
[337096371,1725423058390,-563.43,0.00029041,2]
[337096372,1725423058400,-439.72381087,0.00029041,2]
[337096373,1725423058410,-500.0,0.00029041,2]
[337096374,1725423058419,-177.08501391,0.00029041,2]
[337096375,1725423058429,-500.0,0.00029041,2]
[337096376,1725423058439,-561.11,0.00029041,2]
[337096377,1725423058449,-500.0,0.00029041,2]
[337096378,1725423058458,-808.55,0.00029041,2]
[337096379,1725423058468,-500.0,0.00029041,2]
[337096380,1725423058478,-3784.67,0.00029041,2]
[337096381,1725423058489,-1223.34,0.00029041,2]
[337096382,1725423058499,-500.0,0.00029041,2]
[337096383,1725423058509,-500.0,0.00029041,2]
[337096384,1725423058518,-500.0,0.00029041,2]
[337096385,1725423058529,-500.0,0.00029041,2]
[337096386,1725423058539,-564.57,0.00029041,2]
[337096387,1725423058549,-500.0,0.00029041,2]
[337096388,1725423058558,-2092.4,0.00029041,2]
[337096389,1725423058568,-500.0,0.00029041,2]
[337096390,1725423058578,-500.0,0.00029041,2]
[337096391,1725423058594,-779.0,0.00029041,2]
[337096392,1725423058605,-500.0,0.00029041,2]
[337096393,1725423058615,-500.0,0.00029041,2]
[337096394,1725423058624,-562.41251006,0.00029041,2]
[337096395,1725423058633,-500.0,0.00029041,2]
[337096396,1725423058643,-434.88081124,0.00029041,2]
[337096397,1725423058652,-1393.57,0.00029041,2]
[337096398,1725423058662,-500.0,0.00029041,2]
[337096399,1725423058671,-500.0,0.00029041,2]
[337096400,1725423058681,-500.0,0.00029041,2]
[337096401,1725423058691,-560.14,0.00029041,2]
[337096402,1725423058700,-500.0,0.00029041,2]
[337096403,1725423058710,-500.0,0.00029041,2]
[337096404,1725423058720,-1583.24,0.00029041,2]
[337096405,1725423058730,-828.75,0.00029041,2]
[337096406,1725423058740,-949.38,0.00029041,2]
[337096407,1725423058751,-2926.65,0.00029041,2]
[337096408,1725423058764,-373.88883005,0.00029041,2]
[337096409,1725423058775,-539.90390276,0.00029041,2]
[337096410,1725423058784,-9610.65,0.00029041,2]
[337096411,1725423058793,-1202.75,0.00029041,2]
[337096412,1725423058803,-500.0,0.00029041,2]
[337096413,1725423058812,-500.0,0.00029041,2]
[337096414,1725423058821,-999.35,0.00029041,2]
[337096415,1725423058831,-500.0,0.00029041,2]
[337096416,1725423058842,-500.0,0.00029041,2]
[337096417,1725423058851,-5111.8,0.00029041,2]
[337096418,1725423058861,-500.0,0.00029041,2]
[337096419,1725423058870,-500.0,0.00029041,2]
[337096420,1725423058880,-500.0,0.00029041,2]
[337096421,1725423058890,-500.0,0.00029041,2]
[337096422,1725423058899,-500.0,0.00029041,2]
[337096423,1725423058909,-11708.95370009,0.000291,14]
[337096424,1725423059052,-54281.02629991,0.000291,14]
[337096425,1725423059061,-155.02415,0.000291,2]
[337096426,1725423059070,-151.0,0.000291,7]
[337096427,1725423059080,-151.0,0.000291,2]
[337096428,1725423059089,-500.0,0.00029315,2]
[337096429,1725423059098,-500.0,0.00029315,2]
[337096430,1725423059108,-500.0,0.00029315,2]
[337096431,1725423059117,-540.76669991,0.00029315,2]
[337096432,1725423059127,-490.47994257,0.00029315,2]
[337096433,1725423059136,-355.2476321,0.00029315,2]
[337096434,1725423059146,-500.0,0.00029315,2]
[337096435,1725423059156,-500.0,0.00029315,2]
[337096436,1725423059167,-500.0,0.00029315,2]
[337096437,1725423059176,-152.18206537,0.00029315,2]
[337096438,1725423059185,-500.0,0.00029315,2]
[337096439,1725423059194,-500.0,0.00029315,2]
[337096440,1725423059205,-500.0,0.00029315,2]
[337096441,1725423059214,-184.96201158,0.00029315,2]
[337096442,1725423059223,-500.0,0.00029315,2]
[337096443,1725423059234,-500.0,0.00029315,2]
[337096444,1725423059242,-500.0,0.00029315,2]
[337096445,1725423059252,-500.0,0.00029315,2]
[337096446,1725423059262,-500.0,0.00029315,2]
[337096447,1725423059271,-500.0,0.00029315,2]
[337096448,1725423059280,-500.0,0.00029315,2]
[337096449,1725423059290,-500.0,0.00029315,2]
[337096450,1725423059299,-161.64375623,0.00029315,2]
[337096451,1725423059309,-500.0,0.00029315,2]
[337096452,1725423059318,-500.0,0.00029315,2]
[337096453,1725423059328,-5070.39,0.00029315,2]
[337096454,1725423059339,-292.81069761,0.00029315,2]
[337096455,1725423059348,-500.0,0.00029315,2]
[337096456,1725423059359,-500.0,0.00029315,2]
[337096457,1725423059368,-500.0,0.00029315,2]
[337096458,1725423059377,-519.78,0.00029315,2]
[337096459,1725423059386,-571.84,0.00029315,2]
[337096460,1725423059396,-746.83,0.00029315,2]
[337096461,1725423059405,-1861.83,0.00029315,2]
[337096462,1725423059415,-563.43,0.00029315,2]
[337096463,1725423059424,-500.0,0.00029315,2]
[337096464,1725423059434,-561.11,0.00029315,2]
[337096465,1725423059443,-500.0,0.00029315,2]
[337096466,1725423059453,-808.55,0.00029315,2]
[337096467,1725423059463,-500.0,0.00029315,2]
[337096468,1725423059472,-3784.67,0.00029315,2]
[337096469,1725423059482,-1223.34,0.00029315,2]
[337096470,1725423059491,-500.0,0.00029315,2]
[337096471,1725423059501,-500.0,0.00029315,2]
[337096472,1725423059510,-500.0,0.00029315,2]
[337096473,1725423059520,-500.0,0.00029315,2]
[337096474,1725423059530,-564.57,0.00029315,2]
[337096475,1725423059540,-500.0,0.00029315,2]
[337096476,1725423059550,-2092.4,0.00029315,2]
[337096477,1725423059560,-500.0,0.00029315,2]
[337096478,1725423059570,-500.0,0.00029315,2]
[337096479,1725423059580,-779.0,0.00029315,2]
[337096480,1725423059591,-238.22397025,0.00029315,2]
[337096481,1725423059601,-440.00411624,0.00029315,2]
[337096482,1725423059610,-500.0,0.00029315,2]
[337096483,1725423059619,-1393.57,0.00029315,2]
[337096484,1725423059629,-500.0,0.00029315,2]
[337096485,1725423059639,-500.0,0.00029315,2]
[337096486,1725423059648,-500.0,0.00029315,2]
[337096487,1725423059658,-560.14,0.00029315,2]
[337096488,1725423059668,-640.91215233,0.00029315,2]
[337096489,1725423059678,-500.0,0.00029315,2]
[337096490,1725423059688,-1583.24,0.00029315,2]
[337096491,1725423059697,-828.75,0.00029315,2]
[337096492,1725423059706,-949.38,0.00029315,2]
[337096493,1725423059715,-2926.65,0.00029315,2]
[337096494,1725423059725,-9610.65,0.00029315,2]
[337096495,1725423059734,-1202.75,0.00029315,2]
[337096496,1725423059743,-500.0,0.00029315,2]
[337096497,1725423059752,-500.0,0.00029315,2]
[337096498,1725423059763,-999.35,0.00029315,2]
[337096499,1725423059773,-500.0,0.00029315,2]
[337096500,1725423059782,-500.0,0.00029315,2]
[337096501,1725423059791,-5111.8,0.00029315,2]
[337096502,1725423059800,-500.0,0.00029315,2]
[337096503,1725423059810,-500.0,0.00029315,2]
[337096504,1725423059819,-500.0,0.00029315,2]
[337096505,1725423059828,-500.0,0.00029315,2]
[337096506,1725423059838,-500.0,0.00029315,2]
[337096507,1725423059847,-500.0,0.00029589,2]
[337096508,1725423059856,-500.0,0.00029589,2]
[337096509,1725423059865,-500.0,0.00029589,2]
[337096510,1725423059874,-500.0,0.00029589,2]
[337096511,1725423059883,-500.0,0.00029589,2]
[337096512,1725423059893,-394.73304542,0.00029589,2]
[337096513,1725423059903,-500.0,0.00029589,2]
[337096514,1725423059911,-273.63644061,0.00029589,2]
[337096515,1725423059921,-417.70678475,0.00029589,2]
[337096516,1725423059930,-335.61982631,0.00029589,2]
[337096517,1725423059939,-500.0,0.00029589,2]
[337096518,1725423059948,-500.0,0.00029589,2]
[337096519,1725423059958,-500.0,0.00029589,2]
[337096520,1725423059967,-500.0,0.00029589,2]
[337096521,1725423059976,-500.0,0.00029589,2]
[337096522,1725423059986,-500.0,0.00029589,2]
[337096523,1725423059995,-150.14323813,0.00029589,2]
[337096524,1725423060005,-500.0,0.00029589,2]
[337096525,1725423060016,-500.0,0.00029589,2]
[337096526,1725423060025,-151.0,0.00029589,7]
[337096527,1725423060035,-5070.39,0.00029589,2]
[337096528,1725423060044,-500.0,0.00029589,2]
[337096529,1725423060054,-151.0,0.00029589,7]
[337096530,1725423060064,-151.0,0.00029589,7]
[337096531,1725423060076,-500.0,0.00029589,2]
[337096532,1725423060087,-500.0,0.00029589,2]
[337096533,1725423060098,-519.78,0.00029589,2]
[337096534,1725423060108,-571.84,0.00029589,2]
[337096535,1725423060121,-746.83,0.00029589,2]
[337096536,1725423060133,-1861.83,0.00029589,2]
[337096537,1725423060143,-151.0,0.00029589,7]
[337096538,1725423060152,-563.43,0.00029589,2]
[337096539,1725423060163,-151.0,0.00029589,7]
[337096540,1725423060172,-500.0,0.00029589,2]
[337096541,1725423060182,-561.11,0.00029589,2]
[337096542,1725423060191,-500.0,0.00029589,2]
[337096543,1725423060202,-808.55,0.00029589,2]
[337096544,1725423060211,-500.0,0.00029589,2]
[337096545,1725423060220,-3784.67,0.00029589,2]
[337096546,1725423060229,-1223.34,0.00029589,2]
[337096547,1725423060240,-500.0,0.00029589,2]
[337096548,1725423060250,-327.68272861,0.00029589,2]
[337096549,1725423060259,-500.0,0.00029589,2]
[337096550,1725423060269,-500.0,0.00029589,2]
[337096551,1725423060278,-564.57,0.00029589,2]
[337096552,1725423060287,-500.0,0.00029589,2]
[337096553,1725423060296,-2092.4,0.00029589,2]
[337096554,1725423060306,-500.0,0.00029589,2]
[337096555,1725423060315,-500.0,0.00029589,2]
[337096556,1725423060325,-779.0,0.00029589,2]
[337096557,1725423060335,-500.0,0.00029589,2]
[337096558,1725423060344,-151.0,0.00029589,7]
[337096559,1725423060353,-1393.57,0.00029589,2]
[337096560,1725423060362,-152.11674336,0.00029589,2]
[337096561,1725423060373,-421.382681,0.00029589,7]
[337096562,1725423060382,-500.0,0.00029589,2]
[337096563,1725423060391,-500.0,0.00029589,2]
[337096564,1725423060401,-560.14,0.00029589,2]
[337096565,1725423060410,-421.382681,0.00029589,7]
[337096566,1725423060420,-500.0,0.00029589,2]
[337096567,1725423060430,-1583.24,0.00029589,2]
[337096568,1725423060439,-828.75,0.00029589,2]
[337096569,1725423060449,-949.38,0.00029589,2]
[337096570,1725423060460,-2926.65,0.00029589,2]
[337096571,1725423060469,-9610.65,0.00029589,2]
[337096572,1725423060480,-1202.75,0.00029589,2]
[337096573,1725423060490,-500.0,0.00029589,2]
[337096574,1725423060499,-500.0,0.00029589,2]
[337096575,1725423060542,-999.35,0.00029589,2]
[337096576,1725423060551,-500.0,0.00029589,2]
[337096577,1725423060561,-500.0,0.00029589,2]
[337096578,1725423060571,-5111.8,0.00029589,2]
[337096579,1725423060580,-500.0,0.00029589,2]
[337096580,1725423060590,-264.11278393,0.00029589,2]
[337096581,1725423060599,-500.0,0.00029589,2]
[337096582,1725423060609,-500.0,0.00029589,2]
[337096583,1725423060620,-500.0,0.00029589,2]
[337096584,1725423060631,-500.0,0.00029863,2]
[337096585,1725423060640,-500.0,0.00029863,2]
[337096586,1725423060650,-500.0,0.00029863,2]
[337096587,1725423060660,-500.0,0.00029863,2]
[337096588,1725423060671,-500.0,0.00029863,2]
[337096589,1725423060680,-500.0,0.00029863,2]
[337096590,1725423060690,-481.89529692,0.00029863,2]
[337096591,1725423060701,-500.0,0.00029863,2]
[337096592,1725423060712,-500.0,0.00029863,2]
[337096593,1725423060723,-500.0,0.00029863,2]
[337096594,1725423060732,-151.094176,0.00029863,7]
[337096595,1725423060744,-335.73,0.00029863,2]
[337096596,1725423060754,-151.0,0.00029863,7]
[337096597,1725423060763,-186.065363,0.00029863,7]
[337096598,1725423060775,-500.0,0.00029863,2]
[337096599,1725423060784,-151.0,0.00029863,7]
[337096600,1725423060795,-4000.0,0.00029863,2]
[337096601,1725423060805,-4000.0,0.00029863,2]
[337096602,1725423060815,-4000.0,0.00029863,2]
[337096603,1725423060825,-4000.0,0.00029863,2]
[337096604,1725423060835,-4000.0,0.00029863,2]
[337096605,1725423060844,-4000.0,0.00029863,2]
[337096606,1725423060853,-4000.0,0.00029863,2]
[337096607,1725423060862,-4000.0,0.00029863,2]
[337096608,1725423060871,-4000.0,0.00029863,2]
[337096609,1725423060880,-4000.0,0.00029863,2]
[337096610,1725423060889,-4000.0,0.00029863,2]
[337096611,1725423060898,-4000.0,0.00029863,2]
[337096612,1725423060907,-1750.237423,0.00029863,2]
[337096613,1725423060916,-247.243667,0.00029863,7]
[337096614,1725423060926,-151.0,0.00029863,7]
[337096615,1725423060936,-500.0,0.00029863,2]
[337096616,1725423060945,-500.0,0.00029863,2]
[337096617,1725423060954,-151.0,0.00029863,7]
[337096618,1725423060963,-5070.39,0.00029863,2]
[337096619,1725423060972,-151.0,0.00029863,7]
[337096620,1725423060981,-500.0,0.00029863,2]
[337096621,1725423060991,-500.0,0.00029863,2]
[337096622,1725423061000,-500.0,0.00029863,2]
[337096623,1725423061010,-519.78,0.00029863,2]
[337096624,1725423061019,-571.84,0.00029863,2]
[337096625,1725423061029,-746.83,0.00029863,2]
[337096626,1725423061038,-1861.83,0.00029863,2]
[337096627,1725423061047,-563.43,0.00029863,2]
[337096628,1725423061057,-500.0,0.00029863,2]
[337096629,1725423061067,-561.11,0.00029863,2]
[337096630,1725423061076,-500.0,0.00029863,2]
[337096631,1725423061087,-808.55,0.00029863,2]
[337096632,1725423061105,-500.0,0.00029863,2]
[337096633,1725423061114,-3784.67,0.00029863,2]
[337096634,1725423061123,-1223.34,0.00029863,2]
[337096635,1725423061135,-500.0,0.00029863,2]
[337096636,1725423061144,-500.0,0.00029863,2]
[337096637,1725423061154,-151.0,0.00029863,7]
[337096638,1725423061168,-500.0,0.00029863,2]
[337096639,1725423061178,-564.57,0.00029863,2]
[337096640,1725423061187,-500.0,0.00029863,2]
[337096641,1725423061197,-2340.430906,0.00029863,7]
[337096642,1725423061207,-2340.430906,0.00029863,7]
[337096643,1725423061217,-2092.4,0.00029863,2]
[337096644,1725423061226,-500.0,0.00029863,2]
[337096645,1725423061237,-500.0,0.00029863,2]
[337096646,1725423061247,-437.16068,0.00029863,7]
[337096647,1725423061257,-779.0,0.00029863,2]
[337096648,1725423061267,-437.16068,0.00029863,7]
[337096649,1725423061277,-500.0,0.00029863,2]
[337096650,1725423061287,-1393.57,0.00029863,2]
[337096651,1725423061298,-244.4660671,0.00029863,2]
[337096652,1725423061308,-500.0,0.00029863,2]
[337096653,1725423061318,-560.14,0.00029863,2]
[337096654,1725423061328,-500.0,0.00029863,2]
[337096655,1725423061340,-1583.24,0.00029863,2]
[337096656,1725423061350,-828.75,0.00029863,2]
[337096657,1725423061359,-949.38,0.00029863,2]
[337096658,1725423061369,-2926.65,0.00029863,2]
[337096659,1725423061379,-9610.65,0.00029863,2]
[337096660,1725423061389,-1202.75,0.00029863,2]
[337096661,1725423061398,-500.0,0.00029863,2]
[337096662,1725423061407,-500.0,0.00029863,2]
[337096663,1725423061417,-999.35,0.00029863,2]
[337096664,1725423061427,-500.0,0.00029863,2]
[337096665,1725423061436,-500.0,0.00029863,2]
[337096666,1725423061446,-5111.8,0.00029863,2]
[337096667,1725423061457,-500.0,0.00029863,2]
[337096668,1725423061467,-500.0,0.00029863,2]
[337096669,1725423061478,-500.0,0.00029863,2]
[337096670,1725423061489,-587.0,0.00029886,2]
[337096671,1725423061499,-250.7,0.000299,2]
[337096672,1725423061510,-1168.95,0.000299,14]
[337096673,1725423061520,-1000.0,0.0003,2]
[337096674,1725423061529,-2888.81954556,0.0003,7]
[337096675,1725423061540,-159.0,0.0003,2]
[337096676,1725423061550,-300.0,0.0003,30]
[337096677,1725423061560,-3200.0,0.00030112,2]
[337096678,1725423061571,-150.0,0.00030112,7]
[337096679,1725423061580,-265.01912019,0.00030136,2]
[337096680,1725423061592,-500.0,0.00030136,2]
[337096681,1725423061601,-500.0,0.00030136,2]
[337096682,1725423061610,-500.0,0.00030136,2]
[337096683,1725423061620,-500.0,0.00030136,2]
[337096684,1725423061630,-500.0,0.00030136,2]
[337096685,1725423061641,-500.0,0.00030136,2]
[337096686,1725423061651,-500.0,0.00030136,2]
[337096687,1725423061660,-500.0,0.00030136,2]
[337096688,1725423061670,-500.0,0.00030136,2]
[337096689,1725423061681,-500.0,0.00030136,2]
[337096690,1725423061690,-500.0,0.00030136,2]
[337096691,1725423061701,-5070.39,0.00030136,2]
[337096692,1725423061711,-500.0,0.00030136,2]
[337096693,1725423061722,-500.0,0.00030136,2]
[337096694,1725423061733,-500.0,0.00030136,2]
[337096695,1725423061743,-519.78,0.00030136,2]
[337096696,1725423061754,-571.84,0.00030136,2]
[337096697,1725423061765,-746.83,0.00030136,2]
[337096698,1725423061775,-1861.83,0.00030136,2]
[337096699,1725423061786,-563.43,0.00030136,2]
[337096700,1725423061795,-500.0,0.00030136,2]
[337096701,1725423061806,-561.11,0.00030136,2]
[337096702,1725423061816,-500.0,0.00030136,2]
[337096703,1725423061826,-808.55,0.00030136,2]
[337096704,1725423061836,-500.0,0.00030136,2]
[337096705,1725423061846,-3784.67,0.00030136,2]
[337096706,1725423061856,-1223.34,0.00030136,2]
[337096707,1725423061866,-500.0,0.00030136,2]
[337096708,1725423061876,-500.0,0.00030136,2]
[337096709,1725423061886,-500.0,0.00030136,2]
[337096710,1725423061900,-564.57,0.00030136,2]
[337096711,1725423061911,-500.0,0.00030136,2]
[337096712,1725423061921,-2092.4,0.00030136,2]
[337096713,1725423061934,-500.0,0.00030136,2]
[337096714,1725423061945,-500.0,0.00030136,2]
[337096715,1725423061954,-779.0,0.00030136,2]
[337096716,1725423061964,-500.0,0.00030136,2]
[337096717,1725423061974,-1393.57,0.00030136,2]
[337096718,1725423061983,-500.0,0.00030136,2]
[337096719,1725423061993,-560.14,0.00030136,2]
[337096720,1725423062003,-154.55319949,0.00030136,2]
[337096721,1725423062013,-1583.24,0.00030136,2]
[337096722,1725423062025,-828.75,0.00030136,2]
[337096723,1725423062037,-949.38,0.00030136,2]
[337096724,1725423062047,-2926.65,0.00030136,2]
[337096725,1725423062060,-9610.65,0.00030136,2]
[337096726,1725423062072,-1202.75,0.00030136,2]
[337096727,1725423062083,-500.0,0.00030136,2]
[337096728,1725423062093,-500.0,0.00030136,2]
[337096729,1725423062104,-999.35,0.00030136,2]
[337096730,1725423062114,-500.0,0.00030136,2]
[337096731,1725423062124,-500.0,0.00030136,2]
[337096732,1725423062134,-5111.8,0.00030136,2]
[337096733,1725423062146,-500.0,0.00030136,2]
[337096734,1725423062166,-500.0,0.00030136,2]
[337096735,1725423062178,-500.0,0.00030136,2]
[337096736,1725423062191,-186.932563,0.00030149,2]
[337096737,1725423062203,-276.166198,0.00030149,2]
[337096738,1725423062213,-201.292221,0.00030149,2]
[337096739,1725423062223,-201.292221,0.00030149,2]
[337096740,1725423062237,-194.445949,0.00030149,2]
[337096741,1725423062247,-255.0334715,0.00030273,5]
[337096742,1725423062258,-500.0,0.00030273,5]
[337096743,1725423062269,-383508.91,0.000303,14]
[337096744,1725423062281,-500.0,0.0003041,2]
[337096745,1725423062292,-500.0,0.0003041,2]
[337096746,1725423062302,-500.0,0.0003041,2]
[337096747,1725423062314,-424.20624084,0.0003041,2]
[337096748,1725423062325,-500.0,0.0003041,2]
[337096749,1725423062336,-500.0,0.0003041,2]
[337096750,1725423062348,-469.68597742,0.0003041,2]
[337096751,1725423062360,-500.0,0.0003041,2]
[337096752,1725423062371,-500.0,0.0003041,2]
[337096753,1725423062382,-500.0,0.0003041,2]
[337096754,1725423062392,-500.0,0.0003041,2]
[337096755,1725423062402,-5070.39,0.0003041,2]
[337096756,1725423062412,-500.0,0.0003041,2]
[337096757,1725423062422,-248.16041689,0.0003041,2]
[337096758,1725423062434,-500.0,0.0003041,2]
[337096759,1725423062446,-519.78,0.0003041,2]
[337096760,1725423062456,-571.84,0.0003041,2]
[337096761,1725423062466,-746.83,0.0003041,2]
[337096762,1725423062477,-1861.83,0.0003041,2]
[337096763,1725423062489,-563.43,0.0003041,2]